Workbook

Sheet 보수일람표
A1: [서식3]
A2: 교직원보수일람표(교육공무직원 포함)
U3: (단위 : 원)
A5: 연번 | B5: 현직급 (직위) | C5: 성명 | D5: 현직급 임용일 | E5: 근속 년수 | F5: 현 호봉 | G5: 봉급 | H5: 정근수당 | I5: 정근수당가산 | J5: 성과상여금 | K5: 대우공무원 | L5: 가족수당 | M5: 자녀학비보조 | N5: 육아휴직 | O5: 특수지근무 | P5: 보전수당 | Q5: 교직수당 | R5: 원로교사 | S5: 전문상담교사 및 전문상담순회교사 | T5: 연보수액계 | U5: 직급보조비 | V5: 총 계
D6: 퇴직일 | E6: 승급월 | G6: 보직교사 | H6: 특별수당 | I6: 담임교사 | J6: 실과교원 | K6: 보건활동수당 | L6: 겸직수당 | M6: 시간외근무수당 | N6: 관리업무수당 | O6: 정액급식비 | P6: 명절휴가비 | Q6: 연가보상비 | R6: 기술정보수당
A7: 1 | B7: 교장 | C7: 조종원 | D7: 2019-09-01 | E7: 39 | F7: 48 | G7: 71,340,700 | H7: 5,950,950 | I7: 1,560,000 | J7: 5,012,640 | K7: 0 | L7: 480,000 | M7: 0 | N7: 0 | P7: 840,000 | Q7: 3,000,000 | R7: 0 | S7: 0 | T7: =SUM(G7:S8) -> 102,216,070 | U7: 4,800,000 | V7: =T7+U7 -> 107,016,070
E8: 10 | G8: 0 | I8: 0 | K8: 0 | M8: 0 | N8: 5,386,080 | O8: 1,560,000 | P8: 7,085,700 | Q8: 0 | R8: 0
A9: 2 | B9: 교감 | C9: 강종근 | D9: 1990-05-01 | E9: 32 | F9: 42 | G9: 65,965,100 | H9: 5,491,200 | I9: 1,560,000 | J9: 4,356,830 | K9: 0 | L9: 960,000 | M9: 0 | N9: 0 | P9: 120,000 | Q9: 3,000,000 | R9: 0 | S9: 0 | T9: =SUM(G9:S10) -> 91,922,440 | U9: 3,000,000 | V9: =T9+U9 -> 94,922,440
E10: 2 | G10: 0 | I10: 0 | K10: 0 | M10: 2,368,350 | N10: 0 | O10: 1,560,000 | P10: 6,540,960 | Q10: 0 | R10: 0
A11: 3 | B11: 교사 | C11: 김명숙 | D11: 1985-05-20 | E11: 35 | F11: 44 | G11: 68,228,700 | H11: 5,703,400 | I11: 1,560,000 | J11: 3,278,330 | K11: 0 | L11: 0 | M11: 0 | N11: 0 | P11: 0 | Q11: 3,000,000 | R11: 100,000 | S11: 0 | T11: =SUM(G11:S12) -> 94,051,340 | V11: =T11+U11 -> 94,051,340
E12: 6 | G12: 0 | I12: 1,560,000 | K12: 0 | M12: 2,216,830 | N12: 0 | O12: 1,560,000 | P12: 6,844,080 | Q12: 0 | R12: 0
A13: 4 | B13: 부장 | C13: 김손곤 | D13: 1990-03-01 | E13: 34 | F13: 43 | G13: 67,521,600 | H13: 5,632,700 | I13: 1,560,000 | J13: 3,846,830 | K13: 0 | L13: 720,000 | M13: 0 | N13: 0 | P13: 0 | Q13: 3,000,000 | R13: 0 | S13: 0 | T13: =SUM(G13:S14) -> 93,657,200 | V13: =T13+U13 -> 93,657,200
E14: 4 | G14: 840,000 | I14: 0 | K14: 0 | M14: 2,216,830 | N14: 0 | O14: 1,560,000 | P14: 6,759,240 | Q14: 0 | R14: 0
A15: 5 | B15: 교사 | C15: 신동식 | D15: 1992-03-01 | E15: 33 | F15: 43 | G15: 67,450,800 | H15: 5,632,700 | I15: 1,560,000 | J15: 3,846,830 | K15: 0 | L15: 480,000 | M15: 0 | N15: 0 | P15: 0 | Q15: 3,000,000 | R15: 0 | S15: 0 | T15: =SUM(G15:S16) -> 94,066,400 | V15: =T15+U15 -> 94,066,400
E16: 5 | G16: 0 | I16: 1,560,000 | K16: 0 | M16: 2,216,830 | N16: 0 | O16: 1,560,000 | P16: 6,759,240 | Q16: 0 | R16: 0
A17: 6 | B17: 교사 | C17: 천덕영 | D17: 2019-03-01 | E17: 33 | F17: 43 | G17: 67,380,000 | H17: 5,632,700 | I17: 1,560,000 | J17: 3,278,330 | K17: 0 | L17: 1,560,000 | M17: 0 | N17: 0 | P17: 0 | Q17: 3,000,000 | R17: 600,000 | S17: 0 | T17: =SUM(G17:S18) -> 95,107,100 | V17: =T17+U17 -> 95,107,100
E18: 6 | G18: 0 | I18: 1,560,000 | K18: 0 | M18: 2,216,830 | N18: 0 | O18: 1,560,000 | P18: 6,759,240 | Q18: 0 | R18: 0
A19: 7 | B19: 부장 | C19: 이인구 | D19: 1992-03-01 | E19: 33 | F19: 43 | G19: 67,167,600 | H19: 5,597,300 | I19: 1,560,000 | J19: 3,846,830 | K19: 0 | L19: 480,000 | M19: 0 | N19: 0 | P19: 0 | Q19: 3,000,000 | R19: 0 | S19: 0 | T19: =SUM(G19:S20) -> 93,027,800 | V19: =T19+U19 -> 93,027,800
E20: 9 | G20: 840,000 | I20: 0 | K20: 0 | M20: 2,216,830 | N20: 0 | O20: 1,560,000 | P20: 6,759,240 | Q20: 0 | R20: 0
A21: 8 | B21: 부장 | C21: 김범주 | D21: 1991-03-01 | E21: 33 | F21: 43 | G21: 66,884,400 | H21: 5,597,300 | I21: 1,560,000 | J21: 4,604,820 | K21: 0 | L21: 1,920,000 | M21: 0 | N21: 0 | P21: 0 | Q21: 3,000,000 | R21: 0 | S21: 0 | T21: =SUM(G21:S22) -> 94,900,110 | V21: =T21+U21 -> 94,900,110
E22: 1 | G22: 840,000 | I22: 0 | K22: 0 | M22: 2,216,830 | N22: 0 | O22: 1,560,000 | P22: 6,716,760 | Q22: 0 | R22: 0
A23: 9 | B23: 부장 | C23: 권용주 | D23: 1987-03-01 | E23: 32 | F23: 43 | G23: 66,813,600 | H23: 5,561,900 | I23: 1,560,000 | J23: 3,846,830 | K23: 0 | L23: 0 | M23: 0 | N23: 0 | P23: 0 | Q23: 3,000,000 | R23: 600,000 | S23: 0 | T23: =SUM(G23:S24) -> 92,623,820 | V23: =T23+U23 -> 92,623,820
E24: 2 | G24: 840,000 | I24: 0 | K24: 0 | M24: 2,216,830 | N24: 0 | O24: 1,560,000 | P24: 6,624,660 | Q24: 0 | R24: 0
A25: 10 | B25: 교사 | C25: 이영희 | D25: 1989-03-02 | E25: 32 | F25: 42 | G25: 66,742,800 | H25: 5,561,900 | I25: 1,560,000 | J25: 3,846,830 | K25: 0 | L25: 720,000 | M25: 0 | N25: 0 | P25: 0 | Q25: 3,000,000 | R25: 600,000 | S25: 0 | T25: =SUM(G25:S26) -> 94,042,640 | V25: =T25+U25 -> 94,042,640
E26: 3 | G26: 0 | I26: 1,560,000 | K26: 0 | M26: 2,216,830 | N26: 0 | O26: 1,560,000 | P26: 6,674,280 | Q26: 0 | R26: 0
A27: 11 | B27: 교사 | C27: 김은수 | D27: 1991-03-01 | E27: 31 | F27: 41 | G27: 65,328,800 | H27: 5,455,850 | I27: 1,560,000 | J27: 4,604,820 | K27: 0 | L27: 1,200,000 | M27: 0 | N27: 0 | P27: 0 | Q27: 3,000,000 | R27: 0 | S27: 0 | T27: =SUM(G27:S28) -> 93,033,320 | V27: =T27+U27 -> 93,033,320
E28: 11 | G28: 0 | I28: 1,560,000 | K28: 0 | M28: 2,216,830 | N28: 0 | O28: 1,560,000 | P28: 6,547,020 | Q28: 0 | R28: 0
A29: 12 | B29: 부장 | C29: 박선종 | D29: 1992-03-07 | E29: 31 | F29: 41 | G29: 65,187,400 | H29: 5,455,850 | I29: 1,560,000 | J29: 4,604,820 | K29: 0 | L29: 720,000 | M29: 0 | N29: 0 | P29: 0 | Q29: 3,000,000 | R29: 0 | S29: 0 | T29: =SUM(G29:S30) -> 91,691,920 | V29: =T29+U29 -> 91,691,920
E30: 1 | G30: 840,000 | I30: 0 | K30: 0 | M30: 2,216,830 | N30: 0 | O30: 1,560,000 | P30: 6,547,020 | Q30: 0 | R30: 0
A31: 13 | B31: 교사 | C31: 이지은 | D31: 1991-03-01 | E31: 30 | F31: 40 | G31: 64,715,400 | H31: 5,420,500 | I31: 1,560,000 | J31: 3,846,830 | K31: 0 | L31: 480,000 | M31: 0 | N31: 0 | P31: 0 | Q31: 3,000,000 | R31: 0 | S31: 0 | T31: =SUM(G31:S32) -> 89,304,160 | V31: =T31+U31 -> 89,304,160
E32: 6 | G32: 0 | I32: 0 | K32: 0 | M32: 2,216,830 | N32: 0 | O32: 1,560,000 | P32: 6,504,600 | Q32: 0 | R32: 0
A33: 14 | B33: 교사 | C33: 손순애 | D33: 1991-03-01 | E33: 30 | F33: 40 | G33: 64,054,200 | H33: 5,365,400 | I33: 1,560,000 | J33: 3,846,830 | K33: 0 | L33: 480,000 | M33: 0 | N33: 0 | P33: 0 | Q33: 3,000,000 | R33: 0 | S33: 0 | T33: =SUM(G33:S34) -> 90,081,740 | V33: =T33+U33 -> 90,081,740
E34: 12 | G34: 0 | I34: 1,560,000 | K34: 0 | M34: 2,216,830 | N34: 0 | O34: 1,560,000 | P34: 6,438,480 | Q34: 0 | R34: 0
A35: 15 | B35: 교사 | C35: 김현옥 | D35: 1990-03-01 | E35: 30 | F35: 39 | G35: 63,723,600 | H35: 5,310,300 | I35: 1,560,000 | J35: 3,278,330 | K35: 0 | L35: 0 | M35: 0 | N35: 0 | P35: 0 | Q35: 3,000,000 | R35: 0 | S35: 0 | T35: =SUM(G35:S36) -> 88,581,420 | V35: =T35+U35 -> 88,581,420
E36: 3 | G36: 0 | I36: 1,560,000 | K36: 0 | M36: 2,216,830 | N36: 0 | O36: 1,560,000 | P36: 6,372,360 | Q36: 0 | R36: 0
A37: 16 | B37: 부장 | C37: 전미숙 | D37: 1992-03-25 | E37: 29 | F37: 39 | G37: 62,946,600 | H37: 5,254,800 | I37: 1,560,000 | J37: 3,846,830 | K37: 0 | L37: 240,000 | M37: 0 | N37: 0 | P37: 0 | Q37: 3,000,000 | R37: 0 | S37: 0 | T37: =SUM(G37:S38) -> 87,750,600 | V37: =T37+U37 -> 87,750,600
E38: 10 | G38: 840,000 | I38: 0 | K38: 0 | M38: 2,216,830 | N38: 0 | O38: 1,560,000 | P38: 6,285,540 | Q38: 0 | R38: 0
A39: 17 | B39: 부장 | C39: 박미정 | D39: 1991-09-01 | E39: 29 | F39: 39 | G39: 62,946,600 | H39: 5,254,800 | I39: 1,560,000 | J39: 3,278,330 | K39: 0 | L39: 600,000 | M39: 0 | N39: 0 | P39: 0 | Q39: 3,000,000 | R39: 0 | S39: 0 | T39: =SUM(G39:S40) -> 87,542,100 | V39: =T39+U39 -> 87,542,100
E40: 10 | G40: 840,000 | I40: 0 | K40: 0 | M40: 2,216,830 | N40: 0 | O40: 1,560,000 | P40: 6,285,540 | Q40: 0 | R40: 0
A41: 18 | B41: 교사 | C41: 진선애 (질병휴직) | D41: 1990-03-01 | E41: 29 | F41: 38 | G41: 10,398,600 | H41: 0 | I41: 260,000 | J41: 0 | K41: 0 | L41: 0 | M41: 0 | N41: 0 | P41: 0 | Q41: 500,000 | R41: 0 | S41: 0 | T41: =SUM(G41:S42) -> 14,667,820 | V41: =T41+U41 -> 14,667,820
E42: 5 | G42: 0 | I42: 0 | K42: 0 | M42: 129,640 | N42: 0 | O42: 260,000 | P42: 3,119,580 | Q42: 0 | R42: 0
A43: 19 | B43: 부장 | C43: 김영웅 | D43: 1997-03-01 | E43: 29 | F43: 38 | G43: 61,837,600 | H43: 5,143,900 | I43: 1,560,000 | J43: 3,278,330 | K43: 0 | L43: 480,000 | M43: 0 | N43: 0 | P43: 0 | Q43: 3,000,000 | R43: 0 | S43: 0 | T43: =SUM(G43:S44) -> 86,155,820 | V43: =T43+U43 -> 86,155,820
E44: 8 | G44: 840,000 | I44: 0 | K44: 0 | M44: 2,216,830 | N44: 0 | O44: 1,560,000 | P44: 6,239,160 | Q44: 0 | R44: 0
A45: 20 | B45: 교사 | C45: 김희숙 | D45: 2019-03-01 | E45: 27 | F45: 37 | G45: 61,062,000 | H45: 5,088,500 | I45: 1,560,000 | J45: 3,278,330 | K45: 0 | L45: 720,000 | M45: 0 | N45: 0 | P45: 0 | Q45: 3,000,000 | R45: 0 | S45: 0 | T45: =SUM(G45:S46) -> 86,151,860 | V45: =T45+U45 -> 86,151,860
E46: 3 | G46: 0 | I46: 1,560,000 | K46: 0 | M46: 2,216,830 | N46: 0 | O46: 1,560,000 | P46: 6,106,200 | Q46: 0 | R46: 0
A47: 21 | B47: 교사 | C47: 문영옥 | D47: 1995-03-01 | E47: 27 | F47: 37 | G47: 61,062,000 | H47: 5,088,500 | I47: 1,560,000 | J47: 3,846,830 | K47: 0 | L47: 480,000 | M47: 0 | N47: 0 | P47: 0 | Q47: 3,000,000 | R47: 0 | S47: 0 | T47: =SUM(G47:S48) -> 86,480,360 | V47: =T47+U47 -> 86,480,360
E48: 3 | G48: 0 | I48: 1,560,000 | K48: 0 | M48: 2,216,830 | N48: 0 | O48: 1,560,000 | P48: 6,106,200 | Q48: 0 | R48: 0
A49: 22 | B49: 부장 | C49: 류선 | D49: 1993-03-04 | E49: 27 | F49: 36 | G49: 59,606,600 | H49: 4,977,800 | I49: 1,560,000 | J49: 4,604,820 | K49: 0 | L49: 0 | M49: 0 | N49: 0 | P49: 0 | Q49: 3,000,000 | R49: 0 | S49: 0 | T49: =SUM(G49:S50) -> 84,339,410 | V49: =T49+U49 -> 84,339,410
E50: 4 | G50: 840,000 | I50: 0 | K50: 0 | M50: 2,216,830 | N50: 0 | O50: 1,560,000 | P50: 5,973,360 | Q50: 0 | R50: 0
A51: 23 | B51: 교사 | C51: 최상권 | D51: 1997-03-01 | E51: 25 | F51: 34 | G51: 56,678,400 | H51: 4,723,200 | I51: 1,560,000 | J51: 3,278,330 | K51: 0 | L51: 0 | M51: 0 | N51: 0 | P51: 0 | Q51: 3,000,000 | R51: 0 | S51: 240,000 | T51: =SUM(G51:S52) -> 78,924,600 | V51: =T51+U51 -> 78,924,600
E52: 3 | G52: 0 | I52: 0 | K52: 0 | M52: 2,216,830 | N52: 0 | O52: 1,560,000 | P52: 5,667,840 | Q52: 0 | R52: 0
A53: 24 | B53: 교사 | C53: 이선화 | D53: 1997-03-01 | E53: 23 | F53: 33 | G53: 55,148,400 | H53: 4,595,700 | I53: 1,320,000 | J53: 3,846,830 | K53: 0 | L53: 1,440,000 | M53: 0 | N53: 0 | P53: 0 | Q53: 3,000,000 | R53: 0 | S53: 0 | T53: =SUM(G53:S54) -> 80,202,600 | V53: =T53+U53 -> 80,202,600
E54: 3 | G54: 0 | I54: 1,560,000 | K54: 0 | M54: 2,216,830 | N54: 0 | O54: 1,560,000 | P54: 5,514,840 | Q54: 0 | R54: 0
A55: 25 | B55: 교사 | C55: 조선국 | D55: 2019-03-01 | E55: 23 | F55: 32 | G55: 53,111,600 | H55: 4,467,900 | I55: 1,320,000 | J55: 3,278,330 | K55: 0 | L55: 540,000 | M55: 0 | N55: 0 | P55: 0 | Q55: 3,000,000 | R55: 0 | S55: 0 | T55: =SUM(G55:S56) -> 76,416,140 | V55: =T55+U55 -> 76,416,140
E56: 7 | G56: 0 | I56: 1,560,000 | K56: 0 | M56: 2,216,830 | N56: 0 | O56: 1,560,000 | P56: 5,361,480 | Q56: 0 | R56: 0
A57: 26 | B57: 부장 | C57: 이주용 | D57: 2002-03-01 | E57: 22 | F57: 31 | G57: 52,105,200 | H57: 4,342,100 | I57: 1,320,000 | J57: 4,604,820 | K57: 0 | L57: 0 | M57: 0 | N57: 0 | P57: 0 | Q57: 3,000,000 | R57: 0 | S57: 0 | T57: =SUM(G57:S58) -> 75,199,470 | V57: =T57+U57 -> 75,199,470
E58: 3 | G58: 840,000 | I58: 0 | K58: 0 | M58: 2,216,830 | N58: 0 | O58: 1,560,000 | P58: 5,210,520 | Q58: 0 | R58: 0
A59: 27 | B59: 교사 | C59: 이은선 | D59: 1998-03-01 | E59: 21 | F59: 31 | G59: 51,853,400 | H59: 4,342,100 | I59: 1,320,000 | J59: 3,846,830 | K59: 0 | L59: 2,640,000 | M59: 0 | N59: 0 | P59: 0 | Q59: 3,000,000 | R59: 0 | S59: 0 | T59: =SUM(G59:S60) -> 77,549,680 | V59: =T59+U59 -> 77,549,680
E60: 5 | G60: 0 | I60: 1,560,000 | K60: 0 | M60: 2,216,830 | N60: 0 | O60: 1,560,000 | P60: 5,210,520 | Q60: 0 | R60: 0
A61: 28 | B61: 교사 | C61: 박유환 | D61: 2002-03-01 | E61: 21 | F61: 31 | G61: 50,846,200 | H61: 4,279,150 | I61: 1,320,000 | J61: 3,846,830 | K61: 0 | L61: 1,440,000 | M61: 0 | N61: 0 | P61: 0 | Q61: 3,000,000 | R61: 0 | S61: 0 | T61: =SUM(G61:S62) -> 73,643,990 | V61: =T61+U61 -> 73,643,990
E62: 1 | G62: 0 | I62: 0 | K62: 0 | M62: 2,216,830 | N62: 0 | O62: 1,560,000 | P62: 5,134,980 | Q62: 0 | R62: 0
A63: 29 | B63: 교사 | C63: 방완식 | D63: 2011-03-01 | E63: 17 | F63: 27 | G63: 44,912,600 | H63: 3,782,950 | I63: 960,000 | J63: 4,604,820 | K63: 0 | L63: 1,440,000 | M63: 0 | N63: 0 | P63: 0 | Q63: 3,000,000 | R63: 0 | S63: 0 | T63: =SUM(G63:S64) -> 68,424,900 | V63: =T63+U63 -> 68,424,900
E64: 1 | G64: 0 | I64: 1,560,000 | K64: 0 | M64: 2,064,990 | N64: 0 | O64: 1,560,000 | P64: 4,539,540 | Q64: 0 | R64: 0
A65: 30 | B65: 교사 | C65: 김경하 | D65: 2003-03-01 | E65: 15 | F65: 25 | G65: 43,282,800 | H65: 3,606,900 | I65: 960,000 | J65: 4,604,820 | K65: 0 | L65: 720,000 | M65: 0 | N65: 0 | P65: 0 | Q65: 3,000,000 | R65: 0 | S65: 0 | T65: =SUM(G65:S66) -> 65,687,790 | V65: =T65+U65 -> 65,687,790
E66: 3 | G66: 0 | I66: 1,560,000 | K66: 0 | M66: 2,064,990 | N66: 0 | O66: 1,560,000 | P66: 4,328,280 | Q66: 0 | R66: 0
A67: 31 | B67: 교사 | C67: 최혜경 | D67: 2014-03-01 | E67: 12 | F67: 23 | G67: 39,248,400 | H67: 3,261,100 | I67: 720,000 | J67: 3,278,330 | K67: 0 | L67: 0 | M67: 0 | N67: 0 | P67: 0 | Q67: 3,000,000 | R67: 0 | S67: 0 | T67: =SUM(G67:S68) -> 58,620,060 | V67: =T67+U67 -> 58,620,060
E68: 2 | G68: 0 | I68: 1,560,000 | K68: 0 | M68: 2,064,990 | N68: 0 | O68: 1,560,000 | P68: 3,927,240 | Q68: 0 | R68: 0
A69: 32 | B69: 교사 | C69: 곽홍립 | D69: 2014-03-01 | E69: 10 | F69: 21 | G69: 36,590,500 | H69: 3,040,500 | I69: 720,000 | J69: 4,604,820 | K69: 0 | L69: 1,440,000 | M69: 0 | N69: 0 | P69: 0 | Q69: 3,000,000 | R69: 0 | S69: 0 | T69: =SUM(G69:S70) -> 58,240,690 | V69: =T69+U69 -> 58,240,690
E70: 2 | G70: 0 | I70: 1,560,000 | K70: 0 | M70: 2,064,990 | N70: 0 | O70: 1,560,000 | P70: 3,659,880 | Q70: 0 | R70: 0
A71: 소 계 | G71: 1,862,142,200 | H71: 154,619,850 | I71: 44,540,000 | J71: 121,874,960 | K71: 0 | L71: 22,380,000 | M71: 0 | N71: 0 | P71: 960,000 | Q71: 93,500,000 | R71: 1,900,000 | S71: 240,000 | T71: =SUM(G71:S72) -> 2,644,305,370 | U71: =SUM(U7:U26) -> 7,800,000 | V71: =SUM(T71,U71) -> 2,652,105,370 | X71: 2644305370 | Y71: 7800000 | Z71: 2652105370
G72: 8,400,000 | I72: 24,960,000 | K72: 0 | M72: 66,178,700 | N72: 5,386,080 | O72: 48,620,000 | P72: 188,603,580 | Q72: 0 | R72: 0
A73: 연번 | B73: 현직급 (직위) | C73: 성명 | D73: 현직급 임용일 | E73: 근속 년수 | F73: 현 호봉 | G73: 봉급 | H73: 정근수당 | I73: 정근수당가산 | J73: 성과상여금 | K73: 대우공무원 | L73: 가족수당 | M73: 자녀학비보조 | N73: 육아휴직 | O73: 특수지근무 | P73: 보전수당 | Q73: 교직수당 | R73: 원로교사 | S73: 특수직무수당 | T73: 연보수액계 | U73: 직급보조비 | V73: 총 계
D74: 퇴직일 | E74: 승급월 | G74: 보직교사 | H74: 특별수당 | I74: 담임교사 | J74: 실과교원 | K74: 보건활동수당 | L74: 겸직수당 | M74: 시간외근무수당 | N74: 관리업무수당 | O74: 정액급식비 | P74: 명절휴가비 | Q74: 연가보상비 | R74: 기술정보수당
A75: 1 | B75: 일 06 | C75: 유상기 | D75: 2018-07-01 | E75: 3 | F75: 5 | G75: 29,378,700 | H75: 731,830 | I75: 0 | J75: 3,173,390 | K75: 0 | L75: 0 | M75: 0 | N75: 0 | P75: 0 | Q75: 0 | R75: 0 | S75: 360,000 | T75: =SUM(G75:S76) -> 40,285,450 | U75: 1,980,000 | V75: =T75+U75 -> 42,265,450
E76: 8 | G76: 0 | I76: 0 | K76: 0 | M76: 1,396,080 | N76: 0 | O76: 1,560,000 | P76: 2,990,520 | Q76: 694,930 | R76: 0
A77: 2 | B77: 기 08 | C77: 최창하 | D77: 2010-07-01 | E77: 10 | F77: 9 | G77: 28,171,600 | H77: 2,376,200 | I77: 680,000 | J77: 2,698,270 | K77: 0 | L77: 480,000 | M77: 0 | N77: 0 | P77: 0 | Q77: 0 | R77: 0 | S77: 360,000 | T77: =SUM(G77:S78) -> 42,443,870 | U77: 1,740,000 | V77: =T77+U77 -> 44,183,870
E78: 7 | G78: 0 | I78: 0 | K78: 0 | M78: 2,603,760 | N78: 0 | O78: 1,560,000 | P78: 2,851,440 | Q78: 662,600 | R78: 0
A79: 3 | B79: 일 09 | C79: 박덕환 | D79: 2015-10-01 | E79: 9 | F79: 10 | G79: 26,500,800 | H79: 1,998,800 | I79: 600,000 | J79: 3,682,960 | K79: 0 | L79: 240,000 | M79: 0 | N79: 0 | P79: 0 | Q79: 0 | R79: 0 | S79: 360,000 | T79: =SUM(G79:S80) -> 42,770,140 | U79: 1,740,000 | V79: =T79+U79 -> 44,510,140
E80: 5 | G80: 0 | I80: 0 | K80: 0 | M80: 4,605,120 | N80: 0 | O80: 1,560,000 | P80: 2,665,080 | Q80: 557,380 | R80: 0
A81: 4 | B81: 일 09 | C81: 김영훈 | D81: 2019-12-09 | E81: 1 | F81: 8 | G81: 24,653,000 | H81: 103,400 | I81: 0 | J81: 2,601,130 | K81: 0 | L81: 0 | M81: 0 | N81: 0 | P81: 0 | Q81: 0 | R81: 0 | S81: 360,000 | T81: =SUM(G81:S82) -> 33,301,480 | U81: 1,740,000 | V81: =T81+U81 -> 35,041,480
E82: 5 | G82: 0 | I82: 0 | K82: 0 | M82: 1,023,360 | N82: 0 | O82: 1,560,000 | P82: 2,481,600 | Q82: 518,990 | R82: 0
A83: 소 계 | G83: 108,704,100 | H83: 5,210,230 | I83: 1,280,000 | J83: 12,155,750 | K83: 0 | L83: 720,000 | M83: 0 | N83: 0 | O83: 0 | P83: 0 | Q83: 0 | R83: 0 | S83: 1,440,000 | T83: 158,800,940 | U83: 7,200,000 | V83: 166,000,940
G84: 0 | H84: 0 | I84: 0 | J84: 0 | K84: 0 | L84: 0 | M84: 9,628,320 | N84: 0 | O84: 6,240,000 | P84: 10,988,640 | Q84: 2,433,900 | R84: 0 | S84: 0
A85: 연번 | B85: 현직급 (직위) | C85: 성명 | D85: 현직급 임용일 | E85: 근속 년수 | F85: 현 호봉 | G85: 봉급 | H85: 정근수당 | I85: 정근수당가산 | J85: 성과상여금 | K85: 대우공무원 | L85: 가족수당 | M85: 자녀학비보조 | N85: 육아휴직 | O85: 특수지근무 | P85: 보전수당 | Q85: 교직수당 | R85: 원로교사 | S85: 퇴직금 | T85: 연보수액계 | U85: 직급보조비 | V85: 총 계
D86: 퇴직일 | E86: 승급월 | G86: 보직교사 | H86: 특별수당 | I86: 담임교사 | J86: 실과교원 | K86: 보건활동수당 | L86: 겸직수당 | M86: 시간외근무수당 | N86: 관리업무수당 | O86: 정액급식비 | P86: 명절휴가비 | Q86: 연가보상비 | R86: 기술정보수당 | S86: 전문상담교사 및 전문상담순회교사
A87: 1 | B87: 기간제교 | C87: 이현정 | D87: 2017-03-01 | E87: 14 | F87: 23 | G87: 40,515,600 | H87: 3,376,300 | I87: 740,000 | J87: 2,838,380 | K87: 0 | L87: 0 | M87: 0 | N87: 0 | P87: 0 | Q87: 3,000,000 | R87: 0 | S87: 4,870,860 | T87: =SUM(G87:S88) -> 63,099,900 | V87: =T87+U87 -> 63,099,900
E88: 3 | G88: 0 | I88: 0 | K88: 360,000 | M88: 1,787,200 | N88: 0 | O88: 1,560,000 | P88: 4,051,560 | Q88: 0 | R88: 0 | S88: 0
A89: 2 | B89: 기간제교 | C89: 박정렬 | D89: 2013-03-01 | E89: 11 | F89: 20 | G89: 36,486,000 | H89: 3,040,500 | I89: 720,000 | J89: 2,838,380 | K89: 0 | L89: 480,000 | M89: 0 | N89: 0 | P89: 0 | Q89: 3,000,000 | R89: 0 | S89: 4,814,830 | T89: =SUM(G89:S90) -> 59,230,990 | V89: =T89+U89 -> 59,230,990
E90: 3 | G90: 0 | I90: 0 | K90: 0 | M90: 2,642,680 | N90: 0 | O90: 1,560,000 | P90: 3,648,600 | Q90: 0 | R90: 0 | S90: 0
A91: 3 | B91: 기간제교 | C91: 강현선 | D91: 2016-03-01 | E91: 10 | F91: 19 | G91: 35,232,000 | H91: 2,936,000 | I91: 720,000 | J91: 2,838,380 | K91: 0 | L91: 0 | M91: 0 | N91: 0 | P91: 0 | Q91: 3,000,000 | R91: 0 | S91: 4,938,990 | T91: =SUM(G91:S92) -> 58,961,290 | V91: =T91+U91 -> 58,961,290
E92: 3 | G92: 0 | I92: 1,560,000 | K92: 0 | M92: 2,652,720 | N92: 0 | O92: 1,560,000 | P92: 3,523,200 | Q92: 0 | R92: 0 | S92: 0
A93: 4 | B93: 기간제교 | C93: 김지훈 | D93: 2019-03-01 | E93: 8 | F93: 17 | G93: 32,714,400 | H93: 2,180,960 | I93: 600,000 | J93: 2,371,150 | K93: 0 | L93: 1,200,000 | M93: 0 | N93: 0 | P93: 0 | Q93: 3,000,000 | R93: 0 | S93: 2,836,240 | T93: =SUM(G93:S94) -> 52,381,390 | V93: =T93+U93 -> 52,381,390
E94: 0 | G94: 0 | I94: 1,560,000 | K94: 0 | M94: 1,087,200 | N94: 0 | O94: 1,560,000 | P94: 3,271,440 | Q94: 0 | R94: 0 | S94: 0
A95: 5 | B95: 기간제교 | C95: 차유경 | D95: 2019-07-01 | E95: 7 | F95: 15 | G95: 30,289,200 | H95: 1,766,860 | I95: 600,000 | J95: 2,371,150 | K95: 0 | L95: 0 | M95: 0 | N95: 0 | P95: 0 | Q95: 3,000,000 | R95: 0 | S95: 2,736,240 | T95: =SUM(G95:S96) -> 46,439,570 | V95: =T95+U95 -> 46,439,570
E96: 0 | G96: 0 | I96: 0 | K96: 0 | M96: 1,087,200 | N96: 0 | O96: 1,560,000 | P96: 3,028,920 | Q96: 0 | R96: 0 | S96: 0
A97: 6 | B97: 기간제교 | C97: 김보들 | D97: 2020-03-01 | E97: 4 | F97: 15 | G97: 29,463,600 | H97: 859,350 | I97: 0 | J97: 0 | K97: 0 | L97: 0 | M97: 0 | N97: 0 | P97: 0 | Q97: 3,000,000 | R97: 0 | S97: 3,738,990 | T97: =SUM(G97:S98) -> 42,655,500 | V97: =T97+U97 -> 42,655,500
E98: 12 | G98: 0 | I98: 0 | K98: 0 | M98: 1,087,200 | N98: 0 | O98: 1,560,000 | P98: 2,946,360 | Q98: 0 | R98: 0 | S98: 0
A99: 7 | B99: 기간제교 | C99: 박종화 | D99: 2018-09-01 | E99: 3 | F99: 12 | G99: 26,641,200 | H99: 666,020 | I99: 0 | J99: 2,838,380 | K99: 0 | L99: 0 | M99: 0 | N99: 0 | P99: 0 | Q99: 3,000,000 | R99: 0 | S99: 3,136,240 | T99: =SUM(G99:S100) -> 45,631,880 | V99: =T99+U99 -> 45,631,880
E100: 0 | G100: 0 | I100: 1,560,000 | K100: 0 | M100: 3,565,920 | N100: 0 | O100: 1,560,000 | P100: 2,664,120 | Q100: 0 | R100: 0 | S100: 0
A101: 8 | B101: 기간제교 | C101: 박대인 | D101: 2019-12-15 | E101: 2 | F101: 12 | G101: 0 | H101: 0 | I101: 0 | J101: 668,120 | K101: 0 | L101: 0 | M101: 0 | N101: 0 | P101: 0 | Q101: 0 | R101: 0 | S101: 0 | T101: =SUM(G101:S102) -> 668,120 | V101: =T101+U101 -> 668,120
D102: 2020-01-10 | E102: 0 | G102: 0 | I102: 0 | K102: 0 | M102: 0 | N102: 0 | O102: 0 | P102: 0 | Q102: 0 | R102: 0 | S102: 0
A103: 9 | B103: 기간제교 | C103: 전종민 | D103: 2019-01-01 | E103: 2 | F103: 11 | G103: 21,574,180 | H103: 216,440 | I103: 0 | J103: 2,838,380 | K103: 0 | L103: 0 | M103: 0 | N103: 0 | P103: 0 | Q103: 2,500,000 | R103: 0 | S103: 3,938,990 | T103: =SUM(G103:S104) -> 34,645,110 | V103: =T103+U103 -> 34,645,110
D104: 2020-12-31 | E104: 0 | G104: 0 | I104: 0 | K104: 0 | M104: 978,480 | N104: 0 | O104: 1,300,000 | P104: 1,298,640 | Q104: 0 | R104: 0 | S104: 0
A105: 10 | B105: 기간제교 | C105: 이은지 | D105: 2019-03-01 | E105: 0 | F105: 9 | G105: 24,652,800 | H105: 0 | I105: 0 | J105: 2,371,150 | K105: 0 | L105: 0 | M105: 0 | N105: 0 | P105: 0 | Q105: 3,000,000 | R105: 0 | S105: 3,036,240 | T105: =SUM(G105:S106) -> 41,820,070 | V105: =T105+U105 -> 41,820,070
E106: 0 | G106: 0 | I106: 1,560,000 | K106: 0 | M106: 3,174,600 | N106: 0 | O106: 1,560,000 | P106: 2,465,280 | Q106: 0 | R106: 0 | S106: 0
A107: 소 계 | G107: 277,568,980 | H107: 15,042,430 | I107: 3,380,000 | J107: 21,973,470 | K107: 0 | L107: 1,680,000 | M107: 0 | N107: 0 | O107: 0 | P107: 0 | Q107: 26,500,000 | R107: 0 | S107: 34,047,620 | T107: 445,533,820 | V107: 445,533,820
G108: 0 | H108: 0 | I108: 6,240,000 | J108: 0 | K108: 360,000 | L108: 0 | M108: 18,063,200 | N108: 0 | O108: 13,780,000 | P108: 26,898,120 | Q108: 0 | R108: 0 | S108: 0
A109: 연번 | B109: 현직급 (직위) | C109: 성명 | D109: 현직급 임용일 | E109: 근속 년수 | F109: 현 호봉 | G109: 봉급 | H109: 정근수당 | I109: 정근수당가산 | J109: 성과상여금 | K109: 대우공무원 | L109: 가족수당 | M109: 자녀학비보조 | N109: 육아휴직 | O109: 특수지근무 | P109: 보전수당 | Q109: 교직수당 | R109: 원로교사 | S109: 퇴직금 | T109: 연보수액계 | U109: 직급보조비 | V109: 총 계
D110: 퇴직일 | E110: 승급월 | G110: 보직교사 | H110: 특별수당 | I110: 담임교사 | J110: 실과교원 | K110: 보건활동수당 | L110: 겸직수당 | M110: 시간외근무수당 | N110: 관리업무수당 | O110: 정액급식비 | P110: 명절휴가비 | Q110: 연가보상비 | R110: 기술정보수당 | S110: 교통보조비
A111: 1 | B111: 행정실무사 | C111: 김수권 | D111: 2007-01-01 | E111: 11 | G111: 21,267,240 | I111: 3,960,000 | J111: 600,000 | K111: 0 | L111: 240,000 | M111: 0 | N111: 0 | S111: 3,192,000 | T111: =SUM(G111:S112) -> 31,839,240 | V111: =SUM(T111:U112) -> 31,839,240
G112: 0 | I112: 0 | K112: 0 | N112: 0 | O112: 1,560,000 | P112: 500,000 | Q112: 520,000
A113: 2 | B113: 행정실무사 | C113: 이향근 | D113: 2012-03-01 | E113: 6 | G113: 21,267,240 | I113: 2,160,000 | J113: 600,000 | K113: 0 | L113: 0 | M113: 0 | N113: 0 | S113: 2,732,000 | T113: =SUM(G113:S114) -> 29,339,240 | V113: =SUM(T113:U114) -> 29,339,240
G114: 0 | I114: 0 | K114: 0 | N114: 0 | O114: 1,560,000 | P114: 500,000 | Q114: 520,000
A115: 3 | B115: 행정실무사 | C115: 최유림 | D115: 2019-09-01 | E115: 0 | G115: 21,267,240 | I115: 720,000 | J115: 600,000 | K115: 0 | L115: 960,000 | M115: 0 | N115: 0 | S115: 2,348,000 | T115: =SUM(G115:S116) -> 28,475,240 | V115: =SUM(T115:U116) -> 28,475,240
G116: 0 | I116: 0 | K116: 0 | N116: 0 | O116: 1,560,000 | P116: 500,000 | Q116: 520,000
A117: 교육공무직원 소계 | G117: 63,801,720 | H117: 0 | I117: 6,840,000 | J117: 1,800,000 | K117: 0 | L117: 1,200,000 | M117: 0 | N117: 0 | O117: 0 | P117: 0 | Q117: 0 | R117: 0 | S117: 8,272,000 | T117: 89,653,720 | V117: 89,653,720
G118: 0 | H118: 0 | I118: 0 | J118: 0 | K118: 0 | L118: 0 | M118: 0 | N118: 0 | O118: 4,680,000 | P118: 1,500,000 | Q118: 1,560,000 | R118: 0 | S118: 0
